fUST/lending_fUST_20240629
["ID","MTS","AMOUNT","RATE_DAILY","PERIOD"]
[330629912,1719657145448,-293.08874362,0.0002,2]
[330629913,1719657145471,-763.00863794,0.0002,2]
[330629914,1719657145493,-225.4852904,0.0002,2]
[330629915,1719657145518,-435.0,0.0002,2]
[330629916,1719657145544,-6136.4564723,0.0002,2]
[330629917,1719657145567,-1189.0,0.0002,2]
[330629918,1719657145593,-200.99151412,0.0002,2]
[330629919,1719657145617,-182.2436309,0.00020042,2]
[330629920,1719657145641,-150.0,0.00020042,2]
[330629921,1719657145664,-200.0,0.00020084,2]
[330629922,1719657145689,-150.0,0.00020128,2]
[330629923,1719657145713,-150.0,0.00020156,2]
[330629924,1719657145736,-500.0,0.000202,7]
[330629925,1719657145760,-500.0,0.000202,7]
[330629926,1719657145783,-500.0,0.000202,7]
[330629927,1719657145806,-500.0,0.000202,7]
[330629928,1719657145829,-500.0,0.000202,7]
[330629929,1719657145852,-168.89,0.000202,7]
[330629930,1719657145875,-330.28392912,0.0002059,2]
[330629931,1719657145898,-250.0,0.00020676,2]
[330629932,1719657145921,-1000.0,0.000207,2]
[330629933,1719657145946,-250.0,0.00020704,2]
[330629934,1719657145970,-10000.0,0.00020938,2]
[330629935,1719657145992,-525.67014505,0.00021,2]
[330629936,1719657146015,-309.45844772,0.00021,2]
[330629937,1719657146038,-235.319728,0.00021096,2]
[330629938,1719657146062,-750.0,0.00021096,2]
[330629939,1719657146085,-1000.0,0.000212,2]
[330629940,1719657146108,-350.0,0.00021224,2]
[330629941,1719657146130,-350.0,0.00021252,2]
[330629942,1719657146153,-163.40873918,0.00021772,2]
[330629943,1719657146178,-450.0,0.000218,2]
[330629944,1719657146202,-166.666666,0.00021918,2]
[330629945,1719657146227,-541.017274,0.00021918,2]
[330629946,1719657146249,-541.017274,0.00021918,2]
[330629947,1719657146272,-541.017274,0.00021918,2]
[330629948,1719657146294,-541.017274,0.00021918,2]
[330629949,1719657146317,-541.017274,0.00021918,2]
[330629950,1719657146340,-541.017274,0.00021918,2]
[330629951,1719657146363,-541.017274,0.00021918,2]
[330629952,1719657146386,-541.017274,0.00021918,2]
[330629953,1719657146408,-541.017274,0.00021918,2]
[330629954,1719657146432,-541.017274,0.00021918,2]
[330629955,1719657146457,-541.017274,0.00021918,2]
[330629956,1719657146479,-541.017274,0.00021918,2]
[330629957,1719657146501,-541.017274,0.00021918,2]
[330629958,1719657146525,-541.017274,0.00021918,2]
[330629959,1719657146548,-541.017274,0.00021918,2]
[330629960,1719657146573,-541.017274,0.00021918,2]
[330629961,1719657146596,-541.017274,0.00021918,2]
[330629962,1719657146620,-541.017274,0.00021918,2]
[330629963,1719657146643,-541.017274,0.00021918,2]
[330629964,1719657146752,-541.017278,0.00021918,2]
[330629965,1719657146775,-1632.64084746,0.00022,2]
[330629966,1719657146798,-160.05693272,0.00022016,2]
[330629967,1719657146820,-3962.35233216,0.00022036,2]
[330629968,1719657146843,-878.80758321,0.0002217,2]
[330629969,1719657146867,-550.0,0.00022348,2]
[330629970,1719657146894,-166.666666,0.00022431,2]
[330629971,1719657146917,-650.0,0.00022896,2]
[330629972,1719657146941,-10000.0,0.00022931,2]
[330629973,1719657146965,-166.666666,0.00022944,2]
[330629974,1719657146988,-154.82195475,0.00023,2]
[330629975,1719657147010,-342.32896985,0.00023444,2]
[330629976,1719657147032,-166.666666,0.00023456,2]
[330629977,1719657147055,-6079.86132632,0.000239,2]
[330629978,1719657147079,-166.666666,0.00023969,2]
[330629979,1719657147101,-4456.18014479,0.00024,2]
[330629980,1719657147124,-150.32544459,0.00024,30]
[330629981,1719657147146,-166.666666,0.00024482,2]
[330629982,1719657147169,-10000.0,0.00024874,2]
[330629983,1719657147193,-19573.99886711,0.00024889,2]
[330629984,1719657147218,-188.90322687,0.00025,2]
[330629985,1719657147242,-155.12144482,0.00025,2]
[330629986,1719657147264,-665.93474342,0.00025,30]
[330629987,1719657147288,-181.38261969,0.00025,2]
[330629988,1719657147310,-8192.66022487,0.00025,60]
[330629989,1719657147332,-167.11890482,0.00026,7]
[330629990,1719657147355,-4170.4358161,0.00026,2]
[330629991,1719657147377,-872.0,0.000264,2]
[330629992,1719657147400,-3000.0,0.000265,2]
[330629993,1719657147424,-3000.0,0.0002651,2]
[330629994,1719657147447,-3000.0,0.0002652,2]
[330629995,1719657147471,-3000.0,0.0002653,2]
[330629996,1719657147495,-3000.0,0.0002654,2]
[330629997,1719657147520,-3000.0,0.0002655,2]
[330629998,1719657147545,-3000.0,0.0002656,2]
[330629999,1719657147571,-3000.0,0.0002657,2]
[330630000,1719657147597,-3000.0,0.0002658,2]
[330630001,1719657147624,-3000.0,0.0002659,2]
[330630002,1719657147647,-3000.0,0.000266,2]
[330630003,1719657147679,-3000.0,0.0002661,2]
[330630004,1719657147713,-3000.0,0.0002662,2]
[330630005,1719657147740,-3000.0,0.0002663,2]
[330630006,1719657147770,-3000.0,0.0002664,2]
[330630007,1719657147800,-3000.0,0.0002665,2]
[330630008,1719657147829,-5708.526783,0.0002666,2]
[330630009,1719657147861,-151.33355125,0.00027,5]
[330630010,1719657147892,-151.33355125,0.00027,5]
[330630011,1719657147920,-235.319728,0.00027195,2]
[330630012,1719657147953,-750.0,0.00027195,2]
[330630013,1719657147987,-202.87556,0.00027397,7]
[330630014,1719657148016,-202.87556,0.00027397,7]
[330630015,1719657148042,-202.87556,0.00027397,7]
[330630016,1719657148072,-202.87556,0.00027397,7]
[330630017,1719657148101,-202.87556,0.00027397,7]
[330630018,1719657148130,-202.87556,0.00027397,7]
[330630019,1719657148161,-202.87556,0.00027397,7]
[330630020,1719657148193,-202.87556,0.00027397,7]
[330630021,1719657148220,-202.87556,0.00027397,7]
[330630022,1719657148247,-202.87556,0.00027397,7]
[330630023,1719657148276,-202.87556,0.00027397,7]
[330630024,1719657148307,-202.87556,0.00027397,7]
[330630025,1719657148333,-202.87556,0.00027397,7]
[330630026,1719657148362,-202.87556,0.00027397,7]
[330630027,1719657148390,-202.87556,0.00027397,7]
[330630028,1719657148417,-202.87556,0.00027397,7]
[330630029,1719657148445,-202.87556,0.00027397,7]
[330630030,1719657148474,-202.87556,0.00027397,7]
[330630031,1719657148503,-202.87556,0.00027397,7]
[330630032,1719657148538,-202.875557,0.00027397,7]
[330630033,1719657148565,-161.74057605,0.00027397,10]
[330630034,1719657148591,-160.0,0.00027397,10]
[330630035,1719657148621,-268.75296256,0.000274,2]
[330630036,1719657148646,-194.96988512,0.0002754,5]
[330630037,1719657148673,-151.33355125,0.0002754,5]
[330630038,1719657148699,-411.4378747,0.0002779,2]
[330630039,1719657148726,-153.0,0.0002779,2]
[330630040,1719657148752,-153.0,0.0002779,2]
[330630041,1719657148778,-153.0,0.0002779,2]
[330630042,1719657148806,-306.0,0.0002779,2]
[330630043,1719657148945,-153.0,0.0002779,2]
[330630044,1719657148970,-153.0,0.0002779,2]
[330630045,1719657148994,-153.0,0.0002779,2]
[330630046,1719657149019,-153.0,0.0002779,2]
[330630047,1719657149043,-153.0,0.0002779,2]
[330630048,1719657149068,-268.10658166,0.00028,2]
[330630049,1719657149091,-504.24371511,0.00028,2]
[330630050,1719657149115,-151.33355125,0.0002808,5]
[330630051,1719657149139,-153.0,0.00028613,2]
[330630052,1719657149162,-151.33355125,0.0002862,5]
[330630053,1719657149186,-153.0,0.0002875,2]
[330630054,1719657149217,-153.0,0.0002875,2]
[330630055,1719657149244,-153.0,0.0002875,2]
[330630056,1719657149268,-153.0,0.0002875,2]
[330630057,1719657149294,-6079.86132632,0.000289,2]
[330630058,1719657149319,-151.33355125,0.0002916,5]
[330630059,1719657149343,-773.0,0.000294,2]
[330630060,1719657149367,-153.0,0.00029518,2]
[330630061,1719657149389,-307.3112498,0.00029518,2]
[330630062,1719657149412,-151.42425101,0.000297,5]
[330630063,1719657149436,-158.714124,0.00029715,2]
[330630064,1719657149459,-2000.0,0.00029895,2]
[330630065,1719657149483,-2000.0,0.00029904,2]
[330630066,1719657149506,-2000.0,0.00029913,2]
[330630067,1719657149531,-1986.53450301,0.00029917,2]
[330630068,1719657149554,-1828.9905144,0.0003,4]
[330630069,1719657149580,-10000.0,0.0003,30]
[330630070,1719657149604,-194.0,0.0003,2]
[330630071,1719657149627,-310.8178561,0.00030276,2]
[330630072,1719657149650,-153.0,0.00030687,2]
[330630073,1719657149675,-153.0,0.00030687,2]
[330630074,1719657149699,-153.0,0.00030687,2]
[330630075,1719657149722,-153.0,0.00030687,2]
[330630076,1719657149746,-153.0,0.00030687,2]
[330630077,1719657149770,-153.0,0.00030687,2]
[330630078,1719657149794,-153.0,0.00030687,2]
[330630079,1719657149818,-153.0,0.00030687,2]
[330630080,1719657149842,-153.0,0.00030687,2]
[330630081,1719657149866,-153.0,0.00030687,2]
[330630082,1719657149891,-153.0,0.00030687,2]
[330630083,1719657149914,-153.0,0.00030687,2]
[330630084,1719657149937,-153.0,0.00030687,2]
[330630085,1719657149960,-719.07646114,0.00031,4]
[330630086,1719657149983,-742.84086595,0.00032,2]
[330630087,1719657150007,-153.0,0.00032174,2]
[330630088,1719657150030,-153.0,0.00032174,2]
[330630089,1719657150052,-153.0,0.00032174,2]
[330630090,1719657150075,-153.0,0.00032174,2]
[330630091,1719657150098,-153.0,0.00032174,2]
[330630092,1719657150121,-310.4795616,0.00032174,2]
[330630093,1719657150144,-153.0,0.00032174,2]
[330630094,1719657150167,-153.0,0.00032174,2]
[330630095,1719657150190,-153.0,0.00032174,2]
[330630096,1719657150214,-153.0,0.00032174,2]
[330630097,1719657150240,-153.0,0.00032174,2]
[330630098,1719657150265,-153.0,0.00032213,2]
[330630099,1719657150288,-153.0,0.00032213,2]
[330630100,1719657150311,-773.0,0.000324,2]
[330630101,1719657150335,-2421.81044077,0.000325,60]
[330630102,1719657150359,-530.83815938,0.00033,30]
[330630103,1719657150382,-194.0,0.00033,2]
[330630104,1719657150405,-194.0,0.00033,2]
[330630105,1719657150429,-306.0,0.0003329,2]
[330630106,1719657150453,-235.319728,0.00033295,2]
[330630107,1719657150476,-750.0,0.00033295,2]
[330630108,1719657150499,-369.15909035,0.00035,2]
[330630109,1719657150524,-773.0,0.000354,2]
[330630110,1719657150548,-194.0,0.00036,2]
[330630111,1719657150573,-194.0,0.00036,2]
[330630112,1719657150598,-302.8024042,0.00038,7]
[330630113,1719657150623,-10000.0,0.00038,45]
[330630114,1719657150647,-773.0,0.000384,2]
[330630115,1719657150670,-194.0,0.00039,2]
[330630116,1719657150695,-150.81901718,0.00039221,2]
[330630117,1719657150719,-235.319728,0.00039394,2]
[330630118,1719657150741,-750.0,0.00039394,2]
[330630119,1719657150766,-301.63803436,0.0003988,4]
[330630120,1719657150789,-4057.68981166,0.0003999,4]
[330630121,1719657150812,-151.0,0.0004,120]
[330630122,1719657150834,-2585.8258,0.0004,60]
[330630123,1719657150857,-158.714124,0.00040253,2]
[330630124,1719657150880,-11320.03913731,0.000409,2]
[330630125,1719657150902,-200.0,0.00041,30]
[330630126,1719657150926,-1476.53474565,0.00041,30]
[330630127,1719657151117,276.28183291,0.00016806,2]
[330630128,1719657151153,887.83,0.00032752,3]
[330630129,1719657151182,5259.1127971,0.000249,2]
[330630130,1719657151324,5259.11279707,0.00026841,2]
[330630131,1719657153238,5259.11279707,0.00028781,2]
[330630132,1719657154191,15047.10729014,0.00032762,7]
[330630133,1719657155247,276.28183291,0.00016806,2]
[330630134,1719657155350,5259.11279707,0.00030722,2]
[330630135,1719657156014,246.4212357,0.00032761,2]
[330630136,1719657156072,500.0,0.00032761,2]
[330630137,1719657156213,317.0113339,0.00032761,2]
[330630138,1719657156968,174.68805413,0.00032761,2]
[330630139,1719657157128,5259.11279707,0.00032662,2]
[330630140,1719657159138,739.86,0.00032752,3]
[330630141,1719657160409,2000.0,0.00018882,2]
[330630142,1719657170208,616.55,0.00032752,3]
[330630143,1719657187648,-150.0,0.00032762,2]
[330630144,1719657187673,-150.0,0.00032762,2]
[330630145,1719657187697,-200.0,0.00032762,2]
[330630146,1719657187724,-310.05475224,0.00032762,2]
[330630147,1719657187750,-323048.67439304,0.00032762,7]
[330630148,1719657187775,-25733.69442703,0.00032762,7]
[330630149,1719657187799,-85578.52606983,0.00032762,7]
[330630150,1719657187822,-2917.90442381,0.00032762,7]
[330630151,1719657187846,-5000.0,0.00032762,31]
[330630152,1719657187870,-151.98142583,0.00032762,7]
[330630153,1719657187894,-151.98142579,0.00032762,7]
[330630155,1719657345150,10000.0,0.00022603,29]
[330630156,1719657356767,1000001.0,0.00022603,29]
[330630157,1719657359045,1000002.0,0.00022603,29]
[330630158,1719657362072,1000003.0,0.00022603,29]
[330630159,1719657364663,1000004.0,0.00022603,29]
[330630160,1719657367319,1000005.0,0.00022603,29]
[330630161,1719657371576,1000006.0,0.00022603,29]
[330630162,1719657374529,1000007.0,0.00022603,29]
[330630163,1719657378456,1000008.0,0.00022603,29]
[330630164,1719657381410,1000009.0,0.00022603,29]
[330630165,1719657413657,989955.0,0.00022603,29]
[330630166,1719657419928,-10055.0,0.00022603,29]
[330630167,1719657425678,1000011.0,0.00022603,29]
[330630168,1719657428364,1000012.0,0.00022603,29]
[330630169,1719657430524,1000013.0,0.00022603,29]
[330630170,1719657439339,14527.91315295,0.0001,2]
[330630171,1719657474127,1000014.0,0.00022603,29]
[330630172,1719657500999,200014.0,0.00022603,29]
[330630174,1719657905557,520.83,0.00026,120]
[330630175,1719658159173,-8972.60633466,0.00016255,2]
[330630209,1719658237839,-326.94861135,0.00016255,2]
[330630210,1719658237851,-18483.15343601,0.00016255,2]
[330630220,1719658240505,-4393.21865499,0.00016255,2]
[330630263,1719658377868,273.37336231,9.9e-05,2]
[330630264,1719658413672,2024.0354369,9.9e-05,2]
[330630265,1719658417718,1253.23679175,9.9e-05,2]
[330630266,1719658427672,2057.91079067,0.00014999,2]
[330630267,1719658432159,916.65609247,0.00015,2]
[330630268,1719658453809,154.85288975,9.9e-05,2]
[330630270,1719658479539,270.28637266,0.00014999,2]
[330630271,1719658501308,154.85288975,0.00012,2]
[330630272,1719658505474,233.54634246,0.00014999,2]
[330630273,1719658514658,209.35974365,0.00014999,2]
[330630274,1719658516028,155.03468326,0.00014999,2]
[330630275,1719658525261,327.04150382,0.00012,2]
[330630276,1719658552726,155.15799191,0.00014999,2]
[330630277,1719658615697,726.68067841,0.00014999,2]
[330630278,1719658628831,155.23658848,0.00014999,2]
[330630279,1719658645422,396.93154863,0.00014999,2]
[330630280,1719658822014,473.17841523,0.00015,2]
[330630281,1719658859641,7028.96001498,0.00015,2]
[330630283,1719659066210,10560.92625688,0.00014998,2]
[330630286,1719659218152,-8973.91257754,0.00016255,2]
[330630333,1719659438267,-1058.35399151,0.00016255,2]
[330630334,1719659438277,-1750.7505104,0.00016255,2]
[330630335,1719659438288,-14256.14872,0.00016255,2]
[330630336,1719659438300,-217.65445174,0.00016255,2]
[330630337,1719659438309,-7978.69477478,0.00016662,2]
[330630346,1719659443473,-5971.21679055,0.00016662,2]
[330630347,1719659443713,-3068.3383333,0.00016662,2]
[330630353,1719659767598,232.29883522,0.00014999,2]
[330630356,1719659938001,159.41650065,0.00014999,2]
[330630359,1719660121455,953.63173649,0.00015,2]
[330630401,1719660633247,-300.0,0.00015716,2]
[330630403,1719660633257,-2425.06413057,0.00015717,2]
[330630421,1719660638611,-2197.23870412,0.00015717,2]
[330630474,1719660640807,-20277.69716531,0.00015717,2]
[330630476,1719660640817,-209.144617,0.00016026,2]
[330630477,1719660640828,-1014.19936667,0.00016254,2]
[330630478,1719660640838,-33978.03733416,0.00016255,2]
[330630479,1719660640851,-1758.96852364,0.00016255,2]
[330630511,1719660656022,159.27631888,0.00014999,2]
[330630512,1719660770792,5644.48759236,0.00014999,2]
[330630513,1719660936838,-8900.0,0.00016,3]
[330630514,1719660967921,-4244.0,0.00016,3]
[330630522,1719661408757,273.37336231,9.9e-05,2]
[330630523,1719661416671,273.37336231,9.9e-05,2]
[330630524,1719661423530,947.59886703,0.00015,2]
[330630525,1719661425465,273.37336231,9.9e-05,2]
[330630526,1719661433543,273.37336231,9.9e-05,2]
[330630531,1719661524047,176.03735811,0.00012,2]
[330630532,1719661762018,176.52664349,0.00014545,2]
[330630544,1719661831718,-963.26069452,0.00015574,2]
[330630713,1719662034331,339.5000166,0.00014999,2]
[330630719,1719662179063,305.0,0.00025999,120]
[330630784,1719663032022,-632.68231449,0.00015261,2]
[330630852,1719663037959,-339.5000166,0.00015261,2]
[330630915,1719663040374,-1325.51581834,0.00015261,2]
[330630916,1719663040385,-715.28642246,0.00015535,2]
[330631190,1719663482091,10000.0,0.00026,120]
[330631191,1719663504237,5000.0,0.00026,120]
[330631197,1719663735801,273.37336231,9.9e-05,2]
[330631199,1719663743609,273.37336231,9.9e-05,2]
[330631204,1719663819134,504.18873662,0.00026,120]
[330631206,1719663861141,185.49852912,9.9e-05,2]
[330631207,1719663906003,520.83,0.00026,120]
[330631209,1719663951287,154.83742071,9.9e-05,2]
[330631210,1719664006138,154.83742071,0.00012,2]
[330631215,1719664066140,154.83742071,0.00014545,2]
[330631223,1719664184718,1006.84858386,9.943e-05,2]
[330631256,1719664232329,-339.5000166,0.0001529,2]
[330631257,1719664232340,-2504.0623561,0.0001529,2]
[330631272,1719664238239,-366.99479238,0.0001529,2]
[330631279,1719664238303,-265.00443593,0.0001529,2]
[330631546,1719664270779,933.73101911,0.00014999,2]
[330631547,1719664278196,154.83742071,9.943e-05,2]
[330631548,1719664323285,1087.75983746,0.00012052,2]
[330631549,1719664325389,225.69917204,0.00012052,2]
[330631550,1719664331222,168.963713,0.00023562,120]
[330631558,1719664503659,154.45,0.000151,2]
[330631560,1719664596055,210.0,0.00025,120]
[330631562,1719664618714,240.38,0.000225,30]
[330631563,1719664622198,188.0,0.0002,120]
[330631564,1719664624517,1564.19511431,0.0002,120]
[330631565,1719664628309,293.54597672,7e-05,120]
[330631566,1719664637891,499.02114789,0.00021,120]
[330631567,1719664648726,24900.0,0.00014957,2]
[330631575,1719664798601,-455.187065,0.00015205,2]
[330631576,1719664798634,-157.0807011,0.00015418,2]
[330631577,1719664798661,-455.187065,0.00016,3]
[330631578,1719664798677,-157.0807011,0.00016,3]
[330631579,1719664798690,-1009.4644678,0.00016,3]
[330631641,1719665432708,-1104.0,0.00015275,2]
[330631642,1719665432743,-920.54070808,0.00015275,2]
[330631775,1719665597063,175.96725105,0.00015,2]
[330631782,1719666228845,1189.0,0.00015,2]
[330631826,1719666637774,-1203.81366938,0.00015275,2]
[330631859,1719666641397,-255.83224184,0.00015275,2]
[330631969,1719667832086,-462.228,0.00015275,2]
[330631972,1719667832099,-476.14397417,0.00015275,2]
[330632290,1719668683722,4453.95695625,0.00014999,2]
[330632291,1719668870012,1044.99950462,0.00014999,2]
[330632293,1719668879084,1688.21117984,0.00014999,2]
[330632295,1719668916496,7954.689162,0.00014999,2]
[330632296,1719668916535,8269.86452014,0.00014999,2]
[330632300,1719669016861,6686.16451207,0.00014999,2]
[330632301,1719669017012,9538.38917007,0.00014999,2]
[330632375,1719669042450,-24900.0,0.00015228,2]
[330632376,1719669042459,-21267.48110514,0.00016,3]
[330632408,1719669116154,10000.0,0.00026,120]
[330632410,1719669193896,155.62449239,0.00014999,2]
[330632411,1719669201915,299.19286096,0.00014999,2]
[330632415,1719669276352,16224.55368214,0.00014999,2]
[330632419,1719669414189,1500.0,0.00014999,2]
[330632420,1719669429182,1500.0,0.00014999,2]
[330632423,1719669453751,1151.01337542,0.00014999,2]
[330632424,1719669462484,16224.55368214,0.00014999,2]
[330632425,1719669480410,264.29849367,0.00014999,2]
[330632428,1719669613728,1500.0,0.00014999,2]
[330632433,1719669703314,157.37635578,0.00014999,2]
[330632435,1719669771707,1500.0,0.00014999,2]
[330632441,1719669955264,1500.0,0.00014999,2]
[330632448,1719670143717,1500.0,0.00014999,2]
[330632449,1719670158712,1500.0,0.00014999,2]
[330632450,1719670160399,6700.26330211,0.00014999,2]
[330632552,1719670238956,-7567.83612,0.00015165,2]
[330632554,1719670238966,-1435.17314753,0.00015165,2]
[330632556,1719670238977,-1058.862999,0.00015165,2]
[330632558,1719670238989,-997.92273472,0.00015165,2]
[330632560,1719670239002,-2832.74162604,0.00015165,2]
[330632563,1719670239014,-501.84685582,0.00015165,2]
[330632565,1719670239031,-12214.19063811,0.00015165,2]
[330632654,1719670244345,-5859.26199878,0.00015165,2]
[330632656,1719670244356,-5097.06267261,0.00016,3]
[330632658,1719670244365,-6081.04411675,0.00016155,2]
[330632660,1719670244374,-678.94587,0.00016251,2]
[330632662,1719670244383,-678.94587,0.00016251,2]
[330632663,1719670244392,-678.94587,0.00016251,2]
[330632664,1719670244402,-678.94587,0.00016251,2]
[330632665,1719670244411,-678.94587,0.00016251,2]
[330632666,1719670244420,-678.94587,0.00016251,2]
[330632667,1719670244430,-678.94587,0.00016251,2]
[330632668,1719670244439,-678.94587,0.00016251,2]
[330632669,1719670244448,-678.94587,0.00016251,2]
[330632670,1719670244458,-678.94587,0.00016251,2]
[330632671,1719670244467,-678.94587,0.00016251,2]
[330632672,1719670244476,-678.94587,0.00016251,2]
[330632673,1719670244485,-678.94587,0.00016251,2]
[330632674,1719670244495,-678.94587,0.00016251,2]
[330632675,1719670244504,-678.94587,0.00016251,2]
[330632676,1719670244514,-678.94587,0.00016251,2]
[330632677,1719670244523,-678.94587,0.00016251,2]
[330632678,1719670244532,-678.94587,0.00016251,2]
[330632679,1719670244542,-678.94587,0.00016251,2]
[330632680,1719670244551,-678.945867,0.00016251,2]
[330632681,1719670244564,-241.107542,0.00016251,2]
[330632682,1719670244573,-151.0,0.00016251,2]
[330632683,1719670244582,-151.0,0.00016251,2]
[330632684,1719670244591,-151.0,0.00016251,2]
[330632685,1719670244602,-151.0,0.00016251,2]
[330632686,1719670244611,-151.0,0.00016251,2]
[330632687,1719670244620,-151.0,0.00016251,2]
[330632688,1719670244630,-151.0,0.00016251,2]
[330632689,1719670244642,-151.0,0.00016251,2]
[330632690,1719670244651,-151.0,0.00016251,2]
[330632691,1719670244661,-151.0,0.00016251,2]
[330632692,1719670244670,-151.0,0.00016251,2]
[330632693,1719670244680,-187.927194,0.00016251,2]
[330632694,1719670244689,-561.716691,0.00016251,2]
[330632695,1719670244698,-561.716691,0.00016251,2]
[330632696,1719670244707,-561.716691,0.00016251,2]
[330632697,1719670244717,-561.716691,0.00016251,2]
[330632698,1719670244727,-561.716691,0.00016251,2]
[330632699,1719670244736,-561.716691,0.00016251,2]
[330632700,1719670244745,-561.716691,0.00016251,2]
[330632701,1719670244756,-561.716691,0.00016251,2]
[330632702,1719670244765,-561.716691,0.00016251,2]
[330632703,1719670244774,-561.716691,0.00016251,2]
[330632704,1719670244783,-561.716691,0.00016251,2]
[330632705,1719670244792,-561.716691,0.00016251,2]
[330632706,1719670244802,-561.716691,0.00016251,2]
[330632707,1719670244811,-561.716691,0.00016251,2]
[330632708,1719670244820,-561.716691,0.00016251,2]
[330632709,1719670244829,-561.716691,0.00016251,2]
[330632710,1719670244838,-561.716691,0.00016251,2]
[330632711,1719670244848,-561.716691,0.00016251,2]
[330632712,1719670244857,-561.716691,0.00016251,2]
[330632713,1719670244866,-561.716685,0.00016251,2]
[330632714,1719670244876,-151.0,0.00016251,2]
[330632715,1719670244885,-151.0,0.00016251,2]
[330632716,1719670244894,-602.95231,0.00016251,2]
[330632717,1719670244904,-602.95231,0.00016251,2]
[330632718,1719670244913,-602.95231,0.00016251,2]
[330632719,1719670244922,-602.95231,0.00016251,2]
[330632720,1719670244931,-602.95231,0.00016251,2]
[330632721,1719670244941,-602.95231,0.00016251,2]
[330632722,1719670244950,-602.95231,0.00016251,2]
[330632723,1719670244959,-602.95231,0.00016251,2]
[330632724,1719670244968,-602.95231,0.00016251,2]
[330632725,1719670244978,-602.95231,0.00016251,2]
[330632726,1719670244987,-602.95231,0.00016251,2]
[330632727,1719670244996,-151.0,0.00016251,2]
[330632728,1719670245098,-151.0,0.00016251,2]
[330632729,1719670245108,-602.95231,0.00016251,2]
[330632730,1719670245117,-602.95231,0.00016251,2]
[330632731,1719670245127,-151.0,0.00016251,2]
[330632732,1719670245136,-602.95231,0.00016251,2]
[330632733,1719670245146,-151.0,0.00016251,2]
[330632734,1719670245155,-602.95231,0.00016251,2]
[330632735,1719670245164,-191.36221,0.00016251,2]
[330632736,1719670245174,-602.95231,0.00016251,2]
[330632737,1719670245183,-602.95231,0.00016251,2]
[330632738,1719670245192,-602.95231,0.00016251,2]
[330632739,1719670245201,-602.95231,0.00016251,2]
[330632740,1719670245212,-602.952308,0.00016251,2]
[330632741,1719670245222,-151.0,0.00016251,2]
[330632742,1719670245231,-1046.440708,0.00016251,2]
[330632743,1719670245240,-1046.440708,0.00016251,2]
[330632744,1719670245249,-1046.440708,0.00016251,2]
[330632745,1719670245258,-1046.440708,0.00016251,2]
[330632746,1719670245268,-1046.440708,0.00016251,2]
[330632747,1719670245277,-1046.440708,0.00016251,2]
[330632748,1719670245286,-1046.440708,0.00016251,2]
[330632749,1719670245295,-1046.440708,0.00016251,2]
[330632750,1719670245304,-1046.440708,0.00016251,2]
[330632751,1719670245313,-1046.440708,0.00016251,2]
[330632752,1719670245322,-1046.440708,0.00016251,2]
[330632753,1719670245331,-1046.440708,0.00016251,2]
[330632754,1719670245341,-1046.440708,0.00016251,2]
[330632755,1719670245350,-1046.440708,0.00016251,2]
[330632756,1719670245359,-1046.440708,0.00016251,2]
[330632757,1719670245368,-1046.440708,0.00016251,2]
[330632758,1719670245377,-1046.440708,0.00016251,2]
[330632759,1719670245386,-1046.440708,0.00016251,2]
[330632760,1719670245395,-1046.440708,0.00016251,2]
[330632761,1719670245404,-1046.440718,0.00016251,2]
[330632762,1719670245413,-13978.19977357,0.00016251,2]
[330632763,1719670245422,-26073.63840569,0.00016255,2]